fUSD/lending_fUSD_20240418
["ID","MTS","AMOUNT","RATE_DAILY","PERIOD"]
[322851942,1713415835117,-156.55423234,0.00020998,2]
[322851943,1713415835129,-159.5413222,0.00020998,2]
[322851944,1713415835140,-309.33269054,0.00020998,2]
[322851945,1713415835152,-200.0,0.00020998,2]
[322851946,1713415835183,-191.90200664,0.00020998,2]
[322851947,1713415835195,-155.2420029,0.00020998,2]
[322851948,1713415835208,-155.39166245,0.00020998,2]
[322851949,1713415835222,-1305.10440471,0.00020998,2]
[322851950,1713415835236,-208.4225473,0.00020998,2]
[322851951,1713415835248,-155.37107111,0.00020998,2]
[322851952,1713415835262,-202.70249694,0.00020998,2]
[322851953,1713415835274,-6355.90005234,0.00020998,2]
[322851954,1713415835286,-156.26823793,0.00020998,2]
[322851955,1713415835297,-155.69976342,0.00020998,2]
[322851956,1713415835310,-155.32107597,0.00020998,2]
[322851957,1713415835323,-196.12998049,0.00020998,2]
[322851958,1713415835336,-158.12318564,0.00020998,2]
[322851959,1713415835349,-212.83490123,0.00020998,2]
[322851960,1713415835362,-326.11675121,0.00020998,2]
[322851961,1713415835374,-155.95561793,0.00020998,2]
[322851962,1713415835386,-479.43175891,0.00020998,2]
[322851963,1713415835398,-375.34102279,0.00020998,2]
[322851964,1713415835412,-161.06954375,0.00020998,2]
[322851965,1713415835424,-4787.61029515,0.00020998,2]
[322851966,1713415835436,-595.0403946,0.00020998,2]
[322851967,1713415835448,-264.05975864,0.00020998,2]
[322851968,1713415835461,-1407.22076973,0.00020998,2]
[322851969,1713415835472,-155.14825114,0.00020998,2]
[322851970,1713415835484,-23330.39840764,0.00020998,2]
[322851971,1713415835496,-932.55540118,0.00020998,2]
[322851972,1713415835508,-11875.1948377,0.00020998,2]
[322851973,1713415835525,-833.79793316,0.00020998,2]
[322851974,1713415835542,-318.86689986,0.00020998,2]
[322851975,1713415835599,-2318.4259444,0.00020998,2]
[322851976,1713415835636,-308.807424,0.00020998,2]
[322851977,1713415835653,-317.65,0.00020998,2]
[322851978,1713415835670,-309.31034047,0.00020998,2]
[322851979,1713415835746,-1087.44355534,0.00020998,2]
[322851980,1713415835764,-12376.84941022,0.00020998,2]
[322852012,1713415840318,-662.81214995,0.00020998,2]
[322852013,1713415840330,-7076.96488765,0.00020998,2]
[322852014,1713415840452,-17415.89340693,0.00020998,2]
[322852015,1713415840475,-33899.8943181,0.00020998,2]
[322852016,1713415840486,-6870.5,0.00020998,2]
[322852017,1713415841656,-530011.77593462,0.00020998,2]
[322852018,1713415841666,-155.77369288,0.00020999,2]
[322852019,1713415841675,-1393.58447337,0.00020999,2]
[322852020,1713415841685,-158.8652616,0.00020999,2]
[322852021,1713415841695,-205.05034079,0.00020999,2]
[322852022,1713415841705,-155.15521732,0.00020999,2]
[322852023,1713415841714,-7886.4047431,0.00020999,2]
[322852024,1713415841723,-1531.31586197,0.00020999,2]
[322852025,1713415841732,-1338.83150358,0.00020999,5]
[322852026,1713415841741,-1141.30285672,0.00020999,2]
[322852027,1713415841750,-462.31835442,0.00020999,2]
[322852028,1713415841759,-225.0,0.00020999,2]
[322852029,1713415841769,-513.0,0.00020999,2]
[322852030,1713415841777,-646.55437379,0.00021,3]
[322852031,1713415841786,-192.91969489,0.00021,2]
[322852032,1713415841795,-72842.14769114,0.00021,2]
[322852033,1713415841807,-1603.14387475,0.00021,2]
[322852071,1713415845284,-1276.6769732,0.00020997,2]
[322852072,1713415845298,-376.42920337,0.00021,2]
[322852073,1713415845315,-453.0,0.00021,2]
[322852088,1713415845862,-284.39301746,0.00021,2]
[322852089,1713415845873,-31156.94544056,0.00021,2]
[322852093,1713415848824,-162.84215295,0.00020996,2]
[322852094,1713415848833,-323.79616835,0.00020996,2]
[322852095,1713415848843,-1141.30285672,0.00020999,2]
[322852096,1713415848853,-8205.61363476,0.00021,2]
[322852098,1713416051150,2020.1134084,0.0001251,2]
[322852101,1713416190702,151.0,0.00025367,120]
[322852103,1713416223654,159.0,0.0002099,15]
[322852104,1713416223983,159.0,0.0002098,15]
[322852105,1713416224434,159.0,0.0002097,15]
[322852106,1713416227334,159.0,0.0002099,15]
[322852107,1713416227761,159.0,0.0002098,15]
[322852108,1713416228126,159.0,0.0002097,15]
[322852109,1713416228675,159.0,0.0002099,15]
[322852110,1713416229047,159.0,0.0002098,15]
[322852111,1713416229492,159.0,0.0002099,15]
[322852112,1713416229765,167.4,0.0002098,15]
[322852114,1713416343128,150.5,0.0002099,15]
[322852115,1713416343786,150.5,0.0002098,15]
[322852116,1713416344391,150.5,0.0002097,15]
[322852117,1713416346752,150.5,0.0002099,15]
[322852118,1713416347048,247.03,0.0002098,15]
[322852120,1713416655079,151.0,0.00024742,120]
[322852121,1713416687153,58.3081211,0.00016232,2]
[322852122,1713416687177,101.0018789,0.00016232,2]
[322852133,1713416902550,-155.0,0.0001746,2]
[322852134,1713416902576,-1127.91805791,0.0001746,2]
[322852135,1713416902600,-325.49677635,0.00017461,2]
[322852139,1713417022894,151.0,0.0002506,120]
[322852157,1713417031713,-1000.0,0.00018,2]
[322852160,1713417031722,-288.0,0.0001807,2]
[322852163,1713417031731,-545.0,0.00018083,2]
[322852166,1713417031741,-539.0,0.00018083,2]
[322852168,1713417031750,-995.02,0.00018124,2]
[322852170,1713417031761,-186.7,0.00018442,2]
[322852172,1713417031771,-157.37,0.0001858,2]
[322852173,1713417031780,-1984.01564288,0.000186,2]
[322852174,1713417031789,-157.37,0.00018649,2]
[322852175,1713417031798,-499.99,0.00018719,2]
[322852176,1713417031807,-157.37,0.00018719,2]
[322852177,1713417031815,-157.37,0.00018788,2]
[322852178,1713417031825,-150.0,0.00018825,2]
[322852179,1713417031834,-3752.52428178,0.00018826,2]
[322852180,1713417031845,-2120.29114441,0.00018826,2]
[322852181,1713417031861,-1306.47309934,0.00018826,2]
[322852182,1713417031871,-695.28759123,0.00018826,2]
[322852183,1713417031882,-10282.88336601,0.00018826,2]
[322852184,1713417031946,-1629.76586371,0.00018826,2]
[322852185,1713417031957,-4589.03927908,0.00018826,2]
[322852186,1713417031967,-157.37,0.00018857,2]
[322852187,1713417031977,-404.33,0.0001889,3]
[322852188,1713417031986,-155.0,0.00018898,2]
[322852189,1713417031994,-571.01966468,0.00018899,7]
[322852190,1713417032004,-12830.29473624,0.000189,2]
[322852191,1713417032015,-2592.57686519,0.000189,2]
[322852192,1713417032027,-983.53736688,0.000189,2]
[322852193,1713417032042,-269.34351749,0.000189,2]
[322852194,1713417032054,-393.9,0.000189,2]
[322852195,1713417032107,-6206.2,0.000189,2]
[322852196,1713417032118,-4799.4,0.000189,2]
[322852197,1713417032129,-3476.32708069,0.000189,2]
[322852198,1713417032172,-2686.44708906,0.000189,2]
[322852199,1713417032183,-3921.68974662,0.000189,2]
[322852200,1713417032194,-13101.000009,0.000189,2]
[322852226,1713417037947,-61913.00000005,0.000189,2]
[322852232,1713417038160,-54351.02491126,0.000189,2]
[322852234,1713417038169,-157.37,0.00018926,2]
[322852236,1713417038178,-157.37,0.00018995,2]
[322852238,1713417038187,-1000.0,0.00019,2]
[322852240,1713417038198,-7179.28852544,0.00019056,2]
[322852242,1713417038206,-17196.97609999,0.00019056,2]
[322852244,1713417038215,-157.37,0.00019064,2]
[322852246,1713417038224,-1127.91805791,0.00019132,2]
[322852248,1713417038233,-157.37,0.00019133,2]
[322852250,1713417038242,-313.0,0.0001914,2]
[322852252,1713417038251,-24504.02,0.00019178,2]
[322852254,1713417038260,-10404.88,0.00019178,2]
[322852256,1713417038268,-157.37,0.00019203,2]
[322852258,1713417038277,-712.0,0.00019249,2]
[322852260,1713417038286,-157.37,0.00019272,2]
[322852262,1713417038295,-7179.28852544,0.00019287,2]
[322852264,1713417038305,-17196.97609999,0.00019287,2]
[322852266,1713417038313,-343.38525633,0.00019328,2]
[322852268,1713417038322,-157.37,0.00019341,2]
[322852270,1713417038331,-157.37,0.0001941,2]
[322852272,1713417038341,-305.04592562,0.00019465,2]
[322852274,1713417038350,-157.37,0.00019479,2]
[322852276,1713417038359,-7179.28852544,0.00019517,2]
[322852278,1713417038368,-17196.97609999,0.00019517,2]
[322852279,1713417038377,-157.37,0.00019548,2]
[322852280,1713417038387,-153.55208797,0.00019565,2]
[322852281,1713417038399,-154.25673102,0.00019576,2]
[322852282,1713417038409,-313.0,0.0001961,2]
[322852283,1713417038418,-305.04592562,0.00019647,2]
[322852284,1713417038427,-155.38932183,0.00019679,2]
[322852285,1713417038438,-155.38932183,0.00019691,2]
[322852286,1713417038448,-153.2584297,0.0001974,2]
[322852287,1713417038458,-7179.28852544,0.00019748,2]
[322852288,1713417038468,-17196.97609999,0.00019748,2]
[322852289,1713417038478,-2474.0,0.000198,2]
[322852290,1713417038488,-155.90235281,0.00019873,2]
[322852291,1713417038497,-305.04592562,0.0001988,2]
[322852292,1713417038509,-300.0,0.000199,7]
[322852293,1713417038518,-153.55208797,0.00019903,2]
[322852294,1713417038528,-155.90235281,0.00019969,2]
[322852295,1713417038537,-7179.28852544,0.00019978,2]
[322852296,1713417038547,-17196.97609999,0.00019978,2]
[322852297,1713417038556,-362.59859987,0.00019994,2]
[322852298,1713417038566,-300.5736933,0.00019999,2]
[322852299,1713417038576,-500.0,0.00019999,2]
[322852300,1713417038585,-642.05243855,0.00019999,2]
[322852301,1713417038596,-23250.01707748,0.0002,2]
[322852302,1713417038605,-2689.40875997,0.0002,7]
[322852303,1713417038615,-500.0,0.0002,2]
[322852304,1713417038625,-500.0,0.0002,2]
[322852305,1713417038634,-500.0,0.0002,2]
[322852306,1713417038644,-500.0,0.0002,2]
[322852307,1713417038653,-500.0,0.0002,2]
[322852308,1713417038662,-500.0,0.0002,2]
[322852309,1713417038671,-500.0,0.0002,2]
[322852310,1713417038681,-500.0,0.0002,2]
[322852311,1713417038690,-500.0,0.0002,2]
[322852312,1713417038700,-500.0,0.0002,2]
[322852313,1713417038710,-500.0,0.0002,2]
[322852314,1713417038719,-500.0,0.0002,2]
[322852315,1713417038729,-500.0,0.0002,2]
[322852316,1713417038739,-500.0,0.0002,2]
[322852317,1713417038748,-500.0,0.0002,2]
[322852318,1713417038758,-500.0,0.0002,2]
[322852319,1713417038767,-500.0,0.0002,2]
[322852320,1713417038777,-500.0,0.0002,2]
[322852321,1713417038786,-500.0,0.0002,2]
[322852322,1713417038795,-5000.0,0.0002,2]
[322852323,1713417038805,-600.0,0.0002,7]
[322852324,1713417038814,-500.0,0.0002,2]
[322852325,1713417038824,-500.0,0.0002,2]
[322852326,1713417038833,-500.0,0.0002,2]
[322852327,1713417038842,-352.38,0.0002,2]
[322852328,1713417038851,-500.0,0.0002,2]
[322852329,1713417038861,-167.32,0.00020007,2]
[322852330,1713417038870,-292.80471714,0.00020017,2]
[322852331,1713417038880,-305.04592562,0.00020064,2]
[322852332,1713417038889,-313.0,0.0002008,2]
[322852333,1713417038898,-166.67573769,0.00020099,2]
[322852334,1713417038907,-1000.0,0.000201,7]
[322852335,1713417038917,-689.85499854,0.00020133,2]
[322852336,1713417038926,-343.38525633,0.0002014,2]
[322852337,1713417038936,-166.67573769,0.0002016,2]
[322852338,1713417038946,-154.3886442,0.00020172,2]
[322852339,1713417038956,-1300.0,0.000202,7]
[322852340,1713417038965,-7179.28852544,0.00020209,2]
[322852341,1713417038975,-17196.97609999,0.00020209,2]
[322852342,1713417038984,-161.78899841,0.00020209,2]
[322852343,1713417038993,-150.10701406,0.00020241,2]
[322852344,1713417039003,-155.38932183,0.00020248,2]
[322852345,1713417039012,-177.94,0.00020274,2]
[322852346,1713417039021,-417.92,0.00020278,2]
[322852347,1713417039032,-1179.7963123,0.00020288,2]
[322852348,1713417039042,-5577.21,0.00020297,6]
[322852349,1713417039053,-62196.8,0.00020297,6]
[322852350,1713417039065,-1700.0,0.000203,7]
[322852351,1713417039076,-288.0,0.00020328,2]
[322852352,1713417039085,-154.3886442,0.00020348,2]
[322852353,1713417039094,-153.2584297,0.00020353,2]
[322852354,1713417039104,-155.38932183,0.00020353,2]
[322852355,1713417039114,-156.72601489,0.00020378,2]
[322852356,1713417039123,-343.38525633,0.00020383,2]
[322852357,1713417039135,-300.0,0.000204,7]
[322852358,1713417039146,-689.85499854,0.00020439,2]
[322852359,1713417039156,-7179.28852544,0.00020439,2]
[322852360,1713417039166,-17196.97609999,0.00020439,2]
[322852361,1713417039175,-3178.81891141,0.00020446,2]
[322852362,1713417039185,-150.0,0.000205,2]
[322852363,1713417039194,-300.0,0.000205,7]
[322852364,1713417039205,-313.0,0.0002054,2]
[322852365,1713417039215,-3178.81891141,0.00020582,2]
[322852366,1713417039224,-1351.01657532,0.00020597,2]
[322852367,1713417039234,-300.0,0.000206,7]
[322852368,1713417039244,-1179.7963123,0.00020603,2]
[322852369,1713417039255,-305.04592562,0.00020616,2]
[322852370,1713417039264,-7179.28852544,0.0002067,2]
[322852371,1713417039273,-17196.97609999,0.0002067,2]
[322852372,1713417039283,-154.95535735,0.00020676,2]
[322852373,1713417039292,-172.768,0.00020682,2]
[322852374,1713417039302,-292.80471714,0.00020693,2]
[322852375,1713417039311,-300.0,0.000207,7]
[322852376,1713417039320,-204.0,0.00020708,2]
[322852377,1713417039330,-689.85499854,0.00020744,2]
[322852378,1713417039339,-362.59859987,0.00020759,2]
[322852379,1713417039348,-172.768,0.00020775,2]
[322852380,1713417039358,-327.63343049,0.00020785,2]
[322852381,1713417039367,-1493.67608,0.0002079,2]
[322852382,1713417039376,-800.0,0.000208,7]
[322852383,1713417039385,-352.639082,0.00020822,2]
[322852384,1713417039395,-153.2584297,0.00020829,2]
[322852385,1713417039408,-1000.0,0.00020832,2]
[322852386,1713417039417,-500.0,0.00020832,2]
[322852387,1713417039426,-995.02,0.00020864,2]
[322852388,1713417039435,-1085.20203266,0.00020897,2]
[322852389,1713417039447,-172.25124147,0.00020897,2]
[322852390,1713417039457,-2029.40448884,0.00020897,2]
[322852391,1713417039467,-1787.32131952,0.00020897,2]
[322852392,1713417039479,-2029.40448884,0.00020897,2]
[322852393,1713417039490,-1085.20203259,0.00020897,2]
[322852394,1713417039500,-2029.40448884,0.00020898,2]
[322852395,1713417039509,-1787.32131948,0.00020898,2]
[322852396,1713417039518,-2029.40448884,0.00020898,2]
[322852397,1713417039528,-1085.20203259,0.00020898,2]
[322852398,1713417039537,-2029.40448884,0.00020898,2]
[322852399,1713417039546,-1085.20203259,0.00020898,2]
[322852400,1713417039556,-2029.40448884,0.00020898,2]
[322852401,1713417039566,-1787.32131948,0.00020899,2]
[322852402,1713417039576,-2029.40448884,0.00020899,2]
[322852403,1713417039585,-1085.20203259,0.00020899,2]
[322852404,1713417039594,-2029.40448884,0.00020899,2]
[322852405,1713417039604,-1085.20203259,0.00020899,2]
[322852406,1713417039613,-2029.40448884,0.00020899,2]
[322852407,1713417039623,-1787.32131948,0.00020899,2]
[322852408,1713417039632,-2029.40448884,0.00020899,2]
[322852409,1713417039642,-1085.20203259,0.000209,2]
[322852410,1713417039651,-2029.40448884,0.000209,2]
[322852412,1713417039660,-1085.20203259,0.000209,2]
[322852413,1713417039669,-2029.40448884,0.000209,2]
[322852414,1713417039678,-1787.32131948,0.000209,2]
[322852415,1713417039687,-7179.28852544,0.000209,2]
[322852416,1713417039698,-17196.97609999,0.000209,2]
[322852417,1713417039706,-8968.87501394,0.000209,2]
[322852418,1713417039715,-3903.15445437,0.000209,2]
[322852419,1713417039725,-159.75684801,0.00020907,2]
[322852420,1713417039734,-153.2584297,0.00020924,2]
[322852421,1713417039743,-321.76846619,0.0002096,2]
[322852422,1713417039752,-292.80471714,0.00020966,2]
[322852423,1713417039761,-1000.0,0.0002097,2]
[322852424,1713417039770,-929.67256333,0.0002097,2]
[322852425,1713417039779,-1000.0,0.0002097,2]
[322852426,1713417039789,-500.0,0.0002097,2]
[322852427,1713417039798,-155.38932183,0.00020978,2]
[322852428,1713417039807,-159.023905,0.00020979,2]
[322852429,1713417039817,-562.80849015,0.0002098,2]
[322852430,1713417039827,-217.70355231,0.0002098,2]
[322852431,1713417039836,-500.0,0.0002098,2]
[322852432,1713417039845,-305.04592562,0.00020985,2]
[322852433,1713417039855,-150.14,0.00020985,2]
[322852434,1713417039864,-800.0,0.00020986,2]
[322852435,1713417039873,-321.76846619,0.00020988,2]
[322852436,1713417039882,-321.76846619,0.0002099,2]
[322852437,1713417039891,-236.01814319,0.00020995,2]
[322852438,1713417039900,-263.42881071,0.00020995,2]
[322852439,1713417039910,-155.39161747,0.00020995,2]
[322852440,1713417039919,-363.51536561,0.00020995,2]
[322852441,1713417039928,-155.67107352,0.00020995,2]
[322852442,1713417039938,-201.42556109,0.00020995,2]
[322852443,1713417039948,-29666.8946686,0.00020995,2]
[322852444,1713417039957,-160.48558962,0.00020995,2]
[322852445,1713417039966,-4401.60261938,0.00020995,2]
[322852446,1713417039976,-204.72895838,0.00020995,2]
[322852447,1713417039985,-155.23436945,0.00020995,2]
[322852448,1713417039994,-194.01529019,0.00020995,2]
[322852449,1713417040003,-687.84001768,0.00020995,2]
[322852450,1713417040012,-211.80798569,0.00020995,2]
[322852451,1713417040021,-3870.31764837,0.00020995,2]
[322852452,1713417040030,-156.59106703,0.00020995,2]
[322852453,1713417040039,-200.0,0.00020995,2]
[322852454,1713417040049,-245.68915645,0.00020995,2]
[322852455,1713417040058,-3026.30106579,0.00020995,2]
[322852456,1713417040067,-25975.13308956,0.00020995,2]
[322852457,1713417040076,-319.73553725,0.00020995,2]
[322852458,1713417040085,-155.1683543,0.00020995,2]
[322852459,1713417040095,-2267.47388973,0.00020995,2]
[322852460,1713417040104,-382.59201359,0.00020995,2]
[322852461,1713417040113,-331.24742149,0.00020995,2]
[322852462,1713417040122,-162.70006698,0.00020995,2]
[322852463,1713417040367,-231.23229162,0.00020995,2]
[322852464,1713417040391,-277.78803159,0.00020995,2]
[322852465,1713417040401,-168.5948169,0.00020995,2]
[322852466,1713417040411,-304.65280712,0.00020996,2]
[322852467,1713417040420,-309.11591838,0.00020996,2]
[322852468,1713417040429,-155.57781209,0.00020996,2]
[322852469,1713417040438,-644.16843782,0.00020996,2]
[322852470,1713417040449,-223.83286196,0.00020996,2]
[322852471,1713417040458,-1040.51157298,0.00020996,2]
[322852472,1713417040467,-308.27305272,0.00020996,2]
[322852473,1713417040477,-794.3767838,0.00020996,2]
[322852474,1713417040487,-1972.4889546,0.00020996,2]
[322852475,1713417040496,-13840.2972701,0.00020996,2]
[322852476,1713417040506,-261.0332117,0.00020996,2]
[322852477,1713417040515,-819.7297873,0.00020996,2]
[322852478,1713417040525,-2008.1928885,0.00020996,2]
[322852479,1713417040535,-174.0573304,0.00020996,2]
[322852480,1713417040544,-4961.5861174,0.00020996,2]
[322852481,1713417040553,-167.5833219,0.00020996,2]
[322852482,1713417040564,-626.1796587,0.00020996,2]
[322852483,1713417040573,-154.33575591,0.00020997,2]
[322852484,1713417040582,-684956.24942106,0.00020997,2]
[322852485,1713417040591,-271.59951734,0.00020997,2]
[322852486,1713417040600,-263.88780958,0.00020997,2]
[322852487,1713417040610,-31950.98402427,0.00020997,4]
[322852488,1713417040619,-2500.0,0.00020997,2]
[322852489,1713417040628,-2500.0,0.00020997,2]
[322852490,1713417040638,-2500.0,0.00020997,2]
[322852491,1713417040648,-2500.0,0.00020997,2]
[322852492,1713417040657,-2500.0,0.00020997,2]
[322852493,1713417040666,-2500.0,0.00020997,2]
[322852494,1713417040675,-2500.0,0.00020997,2]
[322852495,1713417040684,-2500.0,0.00020997,2]
[322852496,1713417040696,-2500.0,0.00020997,2]
[322852497,1713417040706,-2500.0,0.00020997,2]
[322852498,1713417040716,-2500.0,0.00020997,2]
[322852499,1713417040726,-2500.0,0.00020997,2]
[322852500,1713417040736,-2500.0,0.00020997,2]
[322852501,1713417040745,-2510.21,0.00020997,2]
[322852502,1713417040754,-348.58580176,0.00020998,2]
[322852503,1713417040764,-2344.37649804,0.00020998,2]
[322852504,1713417040773,-533594.05131275,0.00020998,2]
[322852505,1713417040782,-155.73312236,0.00020998,2]
[322852506,1713417040791,-155.49127893,0.00020998,2]
[322852507,1713417040801,-151.0,0.00020998,2]
[322852508,1713417040810,-151.0,0.00020998,2]
[322852509,1713417040819,-151.0,0.00020998,2]
[322852510,1713417040828,-151.0,0.00020998,2]
[322852511,1713417040837,-5046.788,0.00020998,2]
[322852512,1713417040847,-5046.788,0.00020998,2]
[322852513,1713417040856,-1703.477398,0.00020998,2]
[322852514,1713417040865,-1703.477398,0.00020998,2]
[322852515,1713417040874,-166.618332,0.00020998,2]
[322852516,1713417040884,-166.618332,0.00020998,2]
[322852517,1713417040893,-232.949889,0.00020998,2]
[322852518,1713417040903,-151.0,0.00020998,2]
[322852519,1713417040913,-581.89893641,0.00021,3]
[322852520,1713417040923,-1287050.06889452,0.00021,2]
[322852521,1713417040932,-935410.12100659,0.00021,2]
[322852522,1713417041563,-752623.44728707,0.00021,2]
[322852523,1713417041573,-261730.02006806,0.00021,2]
[322852524,1713417041582,-3209243.89159371,0.00021,2]
[322852525,1713417041592,-897149.95273464,0.00021,2]
[322852526,1713417041601,-884214.66913286,0.00021,2]
[322852527,1713417041610,-631974.00895675,0.00021,2]
[322852528,1713417041619,-107333.49193845,0.00021,2]
[322852529,1713417041629,-12728372.38951694,0.00021,2]
[322852530,1713417041638,-879526.70292447,0.00021,2]
[322852531,1713417041648,-101071.5506849,0.00021,2]
[322852532,1713417041659,-1168043.18941355,0.00021,2]
[322852533,1713417041673,-7103.53077201,0.00021,2]
[322852534,1713417041879,-12400.0,0.00021,2]
[322852535,1713417041889,-3285.175,0.00021,2]
[322852536,1713417041900,-6775.96856293,0.00021,2]
[322852537,1713417041941,-3106.58328,0.00021,2]
[322852538,1713417041954,-14234.99887379,0.00021,2]
[322852561,1713417043422,-622.5,0.00021,2]
[322852563,1713417043434,-1547.90103164,0.00021,2]
[322852565,1713417043446,-1638.79157008,0.00021,2]
[322852567,1713417043460,-352.49082257,0.00021,2]
[322852570,1713417043473,-500.48794578,0.00021,2]
[322852573,1713417043499,-9142.38341367,0.00021,2]
[322852576,1713417043648,-12542.14382266,0.00021,2]
[322852577,1713417043675,-21171.34571815,0.00021,2]
[322852578,1713417043724,-427.18877011,0.00021,2]
[322852596,1713417046091,-6210.0,0.00021,2]
[322852597,1713417046134,-453.0,0.00021,2]
[322852598,1713417046512,-2790.05994626,0.00021,2]
[322852599,1713417048671,-124000.00000006,0.00021,2]
[322852600,1713417048733,-467.95443699,0.00021,2]
[322852601,1713417048775,-8443.80942946,0.00021,2]
[322852602,1713417048784,-9656.19057154,0.00021,2]
[322852603,1713417048821,-337.08969517,0.00021,2]
[322852604,1713417048869,-12431.53728,0.00021,2]
[322852605,1713417048880,-3894.22869027,0.00021,2]
[322852606,1713417385028,151.0,0.00024867,120]
[322852607,1713417487152,1550.0,0.00017,2]
[322852608,1713417735178,1000.0,0.00019207,30]
[322852609,1713417750928,151.0,0.00025009,120]
[322852610,1713417769539,78.4215295,0.00017332,2]
[322852611,1713417769563,80.8884705,0.00017332,2]
[322852623,1713418042849,151.0,0.00025542,120]
[322852624,1713418211715,1000.0,0.00019205,30]
[322852625,1713418233190,-1127.91805791,0.00018999,2]
[322852626,1713418233200,-1600.0,0.00019,2]
[322852627,1713418233209,-170.52,0.00019183,2]
[322852628,1713418233219,-827.2,0.00019186,2]
[322852629,1713418233229,-186.73,0.00019205,2]
[322852630,1713418233238,-154.73,0.00019219,2]
[322852631,1713418233248,-154.73,0.00019238,2]
[322852632,1713418233257,-331.0,0.0001924,2]
[322852633,1713418233266,-150.0,0.00019241,2]
[322852634,1713418233276,-1500.0,0.00019242,2]
[322852635,1713418233285,-150.99,0.00019242,2]
[322852636,1713418233295,-8421.93,0.00019242,2]
[322852637,1713418233304,-150.99,0.00019242,2]
[322852638,1713418233313,-172.8,0.00019242,2]
[322852639,1713418233323,-154.73,0.00019257,2]
[322852640,1713418233332,-150.99,0.00019257,2]
[322852641,1713418233342,-154.73,0.00019276,2]
[322852642,1713418233351,-154.73,0.00019296,2]
[322852643,1713418233361,-154.73,0.00019315,2]
[322852644,1713418233370,-154.73,0.00019334,2]
[322852645,1713418233380,-154.24,0.0001939,2]
[322852646,1713418233390,-157.97842351,0.00019401,2]
[322852647,1713418233399,-620.86949869,0.00019408,2]
[322852648,1713418233409,-155.38932183,0.0001944,2]
[322852649,1713418233419,-263.52424543,0.00019465,2]
[322852650,1713418233429,-154.24,0.00019468,2]
[322852651,1713418233440,-263.52424543,0.00019512,2]
[322852652,1713418233450,-244.03674049,0.00019516,2]
[322852653,1713418233458,-155.90235281,0.00019539,2]
[322852654,1713418233468,-154.24,0.00019545,2]
[322852655,1713418233477,-338.42535988,0.00019554,2]
[322852656,1713418233487,-150.10701406,0.0001956,2]
[322852657,1713418233496,-154.24,0.00019623,2]
[322852658,1713418233506,-154.24,0.00019701,2]
[322852659,1713418233515,-151.33842427,0.00019742,2]
[322852660,1713418233524,-154.24,0.00019779,2]
[322852661,1713418233534,-309.0467307,0.00019797,2]
[322852662,1713418233543,-154.24,0.00019856,2]
[322852663,1713418233553,-309.0467307,0.0001986,2]
[322852664,1713418233562,-157.23548185,0.00019917,2]
[322852665,1713418233571,-170.92,0.00019923,2]
[322852666,1713418233580,-154.24,0.00019934,2]
[322852667,1713418233590,-151.33842427,0.00019941,2]
[322852668,1713418233599,-263.52424543,0.00019965,2]
[322852669,1713418233609,-153.55208797,0.00019981,2]
[322852670,1713418233619,-5000.0,0.0002,2]
[322852671,1713418233628,-154.24,0.00020012,2]
[322852672,1713418233638,-620.86949869,0.00020017,2]
[322852673,1713418233647,-153.2584297,0.00020051,2]
[322852674,1713418233657,-244.03674049,0.00020053,2]
[322852675,1713418233666,-157.23548185,0.00020059,2]
[322852676,1713418233676,-620.86949869,0.0002008,2]
[322852677,1713418233685,-154.24,0.0002009,2]
[322852678,1713418233695,-244.03674049,0.00020116,2]
[322852679,1713418233704,-155.38932183,0.00020156,2]
[322852680,1713418233713,-154.24,0.00020167,2]
[322852681,1713418233723,-157.23548185,0.000202,2]
[322852682,1713418233731,-263.52424543,0.00020233,2]
[322852683,1713418233741,-154.24,0.00020245,2]
[322852684,1713418233750,-154.24,0.00020323,2]